[Event "Early-Titled-Tuesday-Blitz-June-18-2024"]
[Site "Chess.com"]
[Date "2024.06.18"]
[Round "7"]
[White "unkiyto"]
[Black "pinelone"]
[Result "0-1"]
[WhiteElo "2675"]
[BlackElo "2482"]
[TimeControl "180+1"]
[EndTime "9:19:41 PDT"]
[Termination "pinelone won by checkmate"]

1. e4 {[%clk 0:03:00.9]} 1... c6 {[%clk 0:02:59.9]} 2. d4 {[%clk 0:02:59.8]}
2... d5 {[%clk 0:03:00.3]} 3. e5 {[%clk 0:02:57.6]} 3... c5 {[%clk 0:03:00.2]}
4. dxc5 {[%clk 0:02:56.3]} 4... e6 {[%clk 0:03:00.3]} 5. a3 {[%clk 0:02:56.4]}
5... Bxc5 {[%clk 0:03:00.2]} 6. Qg4 {[%clk 0:02:55.6]} 6... Ne7 {[%clk
0:02:58.2]} 7. Nf3 {[%clk 0:02:54.6]} 7... Nf5 {[%clk 0:02:42.8]} 8. Bd3 {[%clk
0:02:53.4]} 8... h5 {[%clk 0:02:42.7]} 9. Qf4 {[%clk 0:02:50.4]} 9... Nc6 {[%clk
0:02:30]} 10. O-O {[%clk 0:02:42.7]} 10... Bd7 {[%clk 0:01:26.7]} 11. b4 {[%clk
0:02:35.2]} 11... Bb6 {[%clk 0:01:23]} 12. Bb2 {[%clk 0:02:16.8]} 12... Nce7
{[%clk 0:01:20.5]} 13. Qg5 {[%clk 0:02:12.7]} 13... Ng6 {[%clk 0:01:17.6]} 14.
Bxf5 {[%clk 0:02:01.2]} 14... exf5 {[%clk 0:01:09.6]} 15. e6 {[%clk 0:01:59.7]}
15... Bxe6 {[%clk 0:01:01.9]} 16. Bxg7 {[%clk 0:01:58.5]} 16... Qxg5 {[%clk
0:00:56.6]} 17. Nxg5 {[%clk 0:01:59]} 17... Rg8 {[%clk 0:00:56.4]} 18. Bf6
{[%clk 0:01:52.6]} 18... Rc8 {[%clk 0:00:49.2]} 19. Nc3 {[%clk 0:01:41.5]} 19...
Nf4 {[%clk 0:00:47.6]} 20. Na4 {[%clk 0:01:26.7]} 20... Rg6 {[%clk 0:00:38.6]}
21. Nxb6 {[%clk 0:01:01.1]} 21... axb6 {[%clk 0:00:38.2]} 22. Nxe6 {[%clk
0:00:54.6]} 22... fxe6 {[%clk 0:00:33.4]} 23. Be5 {[%clk 0:00:37.6]} 23... Nxg2
{[%clk 0:00:23.3]} 24. Kh1 {[%clk 0:00:37.1]} 24... Nh4 {[%clk 0:00:22.2]} 25.
c3 {[%clk 0:00:26]} 25... Nf3 {[%clk 0:00:22]} 26. Bg3 {[%clk 0:00:21]} 26... h4
{[%clk 0:00:16.2]} 27. Bf4 {[%clk 0:00:19.7]} 27... Rc4 {[%clk 0:00:16]} 28. Be3
{[%clk 0:00:19.1]} 28... Rxc3 {[%clk 0:00:14.9]} 29. Bxb6 {[%clk 0:00:18.9]}
29... h3 {[%clk 0:00:14.5]} 30. Rac1 {[%clk 0:00:16.5]} 30... Rg2 {[%clk
0:00:14.3]} 31. Bc7 {[%clk 0:00:15.2]} 31... Rxc7 {[%clk 0:00:13.8]} 32. Rxc7
{[%clk 0:00:13.7]} 32... Rxh2# {[%clk 0:00:14.1]} 0-1

[Event "Early-Titled-Tuesday-Blitz-June-18-2024"]
[Site "Chess.com"]
[Date "2024.06.18"]
[Round "7"]
[White "SuperPower2011"]
[Black "savitha1030"]
[Result "1-0"]
[WhiteElo "2720"]
[BlackElo "2580"]
[TimeControl "180+1"]
[EndTime "9:19:46 PDT"]
[Termination "SuperPower2011 won by resignation"]

1. Nf3 {[%clk 0:03:00.9]} 1... c5 {[%clk 0:02:56.5]} 2. b3 {[%clk 0:03:00.3]}
2... Nc6 {[%clk 0:02:57.4]} 3. Bb2 {[%clk 0:03:00.3]} 3... d5 {[%clk 0:02:58.3]}
4. g3 {[%clk 0:02:57]} 4... Nf6 {[%clk 0:02:58.8]} 5. Bg2 {[%clk 0:02:57.1]}
5... Bg4 {[%clk 0:02:58.7]} 6. d4 {[%clk 0:02:56.4]} 6... e6 {[%clk 0:02:58.8]}
7. O-O {[%clk 0:02:55.9]} 7... Bd6 {[%clk 0:02:58.6]} 8. dxc5 {[%clk 0:02:55.2]}
8... Bxc5 {[%clk 0:02:59.5]} 9. Nbd2 {[%clk 0:02:52.3]} 9... O-O {[%clk
0:02:59.5]} 10. c4 {[%clk 0:02:50.2]} 10... d4 {[%clk 0:02:50.6]} 11. Ne1 {[%clk
0:02:41.5]} 11... Bf5 {[%clk 0:02:37.6]} 12. Nd3 {[%clk 0:02:39.4]} 12... Bxd3
{[%clk 0:02:38]} 13. exd3 {[%clk 0:02:40.2]} 13... Qc7 {[%clk 0:02:30.5]} 14.
Qe2 {[%clk 0:02:39.3]} 14... Rad8 {[%clk 0:02:29.5]} 15. a3 {[%clk 0:02:38.5]}
15... a5 {[%clk 0:02:29.1]} 16. h4 {[%clk 0:02:35.9]} 16... Rfe8 {[%clk
0:02:02.8]} 17. Rfe1 {[%clk 0:02:33.5]} 17... e5 {[%clk 0:02:00.5]} 18. h5
{[%clk 0:02:33.4]} 18... h6 {[%clk 0:02:00.2]} 19. Ne4 {[%clk 0:02:31.4]} 19...
Nxe4 {[%clk 0:01:59.9]} 20. Bxe4 {[%clk 0:02:32.3]} 20... Qb6 {[%clk 0:01:46.4]}
21. Qc2 {[%clk 0:02:22.6]} 21... Ne7 {[%clk 0:01:46]} 22. Rab1 {[%clk
0:02:20.7]} 22... f5 {[%clk 0:01:36]} 23. Bg2 {[%clk 0:02:17]} 23... Qf6 {[%clk
0:01:35.4]} 24. Bxb7 {[%clk 0:02:08.7]} 24... Rb8 {[%clk 0:01:34.5]} 25. Bg2
{[%clk 0:02:08.2]} 25... f4 {[%clk 0:01:28.8]} 26. Bc1 {[%clk 0:02:01.5]} 26...
fxg3 {[%clk 0:01:26.5]} 27. fxg3 {[%clk 0:02:02.4]} 27... Nf5 {[%clk 0:01:26.9]}
28. Rf1 {[%clk 0:01:42.8]} 28... g6 {[%clk 0:00:54.6]} 29. g4 {[%clk 0:01:37.1]}
29... e4 {[%clk 0:00:47.9]} 30. gxf5 {[%clk 0:01:34.7]} 30... gxf5 {[%clk
0:00:48.8]} 31. Qf2 {[%clk 0:01:12.8]} 31... exd3 {[%clk 0:00:30.9]} 32. Qg3+
{[%clk 0:01:12.4]} 32... Kh8 {[%clk 0:00:23]} 33. Qxd3 {[%clk 0:01:12]} 33...
Rg8 {[%clk 0:00:16.8]} 34. Bf4 {[%clk 0:00:58.8]} 34... Rbe8 {[%clk 0:00:14.1]}
35. Rbe1 {[%clk 0:00:58.2]} 35... Qg7 {[%clk 0:00:13.3]} 36. Qf3 {[%clk
0:00:52.1]} 36... Re4 {[%clk 0:00:12.9]} 37. Rxe4 {[%clk 0:00:49.2]} 37... fxe4
{[%clk 0:00:11.8]} 38. Qxe4 {[%clk 0:00:50.1]} 38... d3+ {[%clk 0:00:12.4]} 39.
Kh1 {[%clk 0:00:50.5]} 39... Bd4 {[%clk 0:00:10.6]} 40. Bxh6 {[%clk 0:00:47.8]}
40... Qxh6 {[%clk 0:00:05]} 41. Qxd4+ {[%clk 0:00:47.9]} 41... Rg7 {[%clk
0:00:05.3]} 42. Rf8+ {[%clk 0:00:47.7]} 1-0

[Event "Early-Titled-Tuesday-Blitz-June-18-2024"]
[Site "Chess.com"]
[Date "2024.06.18"]
[Round "7"]
[White "sachiniranasinghe"]
[Black "KarlEmilElmer"]
[Result "0-1"]
[WhiteElo "1904"]
[BlackElo "2204"]
[TimeControl "180+1"]
[EndTime "9:19:48 PDT"]
[Termination "KarlEmilElmer won by checkmate"]

1. Nf3 {[%clk 0:03:00.9]} 1... d5 {[%clk 0:02:53.3]} 2. g3 {[%clk 0:03:01.2]}
2... c5 {[%clk 0:02:52.9]} 3. d4 {[%clk 0:03:00]} 3... cxd4 {[%clk 0:02:51.1]}
4. Nxd4 {[%clk 0:02:58.7]} 4... e5 {[%clk 0:02:51.1]} 5. Nb3 {[%clk 0:02:58.5]}
5... Nf6 {[%clk 0:02:50.9]} 6. Bg2 {[%clk 0:02:58.6]} 6... Be6 {[%clk
0:02:50.8]} 7. O-O {[%clk 0:02:58.4]} 7... Nc6 {[%clk 0:02:50.7]} 8. c3 {[%clk
0:02:57.9]} 8... Be7 {[%clk 0:02:49.1]} 9. Be3 {[%clk 0:02:53.9]} 9... O-O
{[%clk 0:02:47.1]} 10. Bc5 {[%clk 0:02:53.4]} 10... a5 {[%clk 0:02:30.9]} 11.
Bxe7 {[%clk 0:02:53]} 11... Qxe7 {[%clk 0:02:30.4]} 12. a4 {[%clk 0:02:52.2]}
12... Rfd8 {[%clk 0:02:28.6]} 13. Qc2 {[%clk 0:02:37]} 13... Rac8 {[%clk
0:02:09.5]} 14. Na3 {[%clk 0:02:35.2]} 14... b6 {[%clk 0:01:33.7]} 15. Nb5
{[%clk 0:02:33.8]} 15... d4 {[%clk 0:01:30.7]} 16. Nd2 {[%clk 0:02:23.7]} 16...
Nb4 {[%clk 0:00:51.1]} 17. Qc1 {[%clk 0:02:15.6]} 17... d3 {[%clk 0:00:43.1]}
18. exd3 {[%clk 0:02:06.8]} 18... Nxd3 {[%clk 0:00:43]} 19. Qb1 {[%clk
0:01:53.4]} 19... Bf5 {[%clk 0:00:29.4]} 20. Qa2 {[%clk 0:01:53.1]} 20... Ng4
{[%clk 0:00:25.4]} 21. Ne4 {[%clk 0:01:45.2]} 21... Bxe4 {[%clk 0:00:18.6]} 22.
Bxe4 {[%clk 0:01:45]} 22... Ndxf2 {[%clk 0:00:19]} 23. Rxf2 {[%clk 0:01:45]}
23... Nxf2 {[%clk 0:00:19.9]} 24. Kxf2 {[%clk 0:01:45.2]} 24... Rd2+ {[%clk
0:00:20.5]} 25. Ke1 {[%clk 0:01:31.8]} 25... Rxh2 {[%clk 0:00:20.3]} 26. Rd1
{[%clk 0:01:09]} 26... Qg5 {[%clk 0:00:20.2]} 27. b4 {[%clk 0:00:37.9]} 27...
Qe3+ {[%clk 0:00:09.3]} 28. Kf1 {[%clk 0:00:37.5]} 28... Rxa2 {[%clk 0:00:07.8]}
29. Bc2 {[%clk 0:00:34]} 29... Rxc2 {[%clk 0:00:07.7]} 30. Rd8+ {[%clk
0:00:32.3]} 30... Rxd8 {[%clk 0:00:07.8]} 31. Nd4 {[%clk 0:00:33.2]} 31... Rxd4
{[%clk 0:00:07.7]} 32. cxd4 {[%clk 0:00:32.9]} 32... exd4 {[%clk 0:00:07.1]} 33.
g4 {[%clk 0:00:32.9]} 33... axb4 {[%clk 0:00:07.2]} 34. a5 {[%clk 0:00:32.8]}
34... Qb3 {[%clk 0:00:07.2]} 35. axb6 {[%clk 0:00:32.4]} 35... Qb1# {[%clk
0:00:07.3]} 0-1

[Event "Early-Titled-Tuesday-Blitz-June-18-2024"]
[Site "Chess.com"]
[Date "2024.06.18"]
[Round "7"]
[White "LeninGuerra"]
[Black "FredddieCroderg"]
[Result "1/2-1/2"]
[WhiteElo "2539"]
[BlackElo "2331"]
[TimeControl "180+1"]
[EndTime "9:19:50 PDT"]
[Termination "Game drawn by repetition"]

1. e4 {[%clk 0:03:00.9]} 1... c6 {[%clk 0:02:59.7]} 2. c4 {[%clk 0:02:59.1]}
2... d5 {[%clk 0:02:59.6]} 3. exd5 {[%clk 0:03:00]} 3... cxd5 {[%clk 0:02:57.8]}
4. cxd5 {[%clk 0:03:00.9]} 4... Nf6 {[%clk 0:02:57.7]} 5. Nc3 {[%clk 0:03:00.9]}
5... Nxd5 {[%clk 0:02:55.8]} 6. Bc4 {[%clk 0:03:00.4]} 6... e6 {[%clk
0:02:53.9]} 7. Nge2 {[%clk 0:02:58.9]} 7... Be7 {[%clk 0:02:53.7]} 8. O-O {[%clk
0:02:58.5]} 8... O-O {[%clk 0:02:53.7]} 9. d4 {[%clk 0:02:58.7]} 9... Nc6 {[%clk
0:02:52.6]} 10. Ng3 {[%clk 0:02:57.6]} 10... Bf6 {[%clk 0:02:50.2]} 11. Be3
{[%clk 0:02:51.4]} 11... Bd7 {[%clk 0:02:43.5]} 12. Nce4 {[%clk 0:02:48.6]}
12... Nce7 {[%clk 0:02:41.7]} 13. Nh5 {[%clk 0:02:46.5]} 13... Bc6 {[%clk
0:02:40.7]} 14. Nexf6+ {[%clk 0:02:46]} 14... Nxf6 {[%clk 0:02:37.4]} 15. Nxf6+
{[%clk 0:02:41.5]} 15... gxf6 {[%clk 0:02:37.4]} 16. Bh6 {[%clk 0:02:40.9]}
16... Re8 {[%clk 0:02:37.4]} 17. h4 {[%clk 0:02:40.6]} 17... Kh8 {[%clk
0:02:35.7]} 18. Qh5 {[%clk 0:02:04.9]} 18... Rg8 {[%clk 0:02:34]} 19. g3 {[%clk
0:01:59.4]} 19... Qxd4 {[%clk 0:02:28.1]} 20. Kh2 {[%clk 0:01:34.3]} 20... Qxc4
{[%clk 0:01:59.9]} 21. Qxf7 {[%clk 0:01:33.5]} 21... Rg6 {[%clk 0:01:47.5]} 22.
Bf8 {[%clk 0:01:15.9]} 22... Qe4 {[%clk 0:01:13.9]} 23. Rg1 {[%clk 0:01:14.2]}
23... Nf5 {[%clk 0:01:03.2]} 24. h5 {[%clk 0:01:06.7]} 24... Rxg3 {[%clk
0:00:39.5]} 25. fxg3 {[%clk 0:00:48.7]} 25... Qe2+ {[%clk 0:00:38.6]} 26. Kh3
{[%clk 0:00:48.9]} 26... Bf3 {[%clk 0:00:20.5]} 27. Qxf6+ {[%clk 0:00:29.5]}
27... Kg8 {[%clk 0:00:20.1]} 28. Qg5+ {[%clk 0:00:29.5]} 28... Kxf8 {[%clk
0:00:18]} 29. g4 {[%clk 0:00:27.9]} 29... Be4 {[%clk 0:00:12.1]} 30. Raf1 {[%clk
0:00:13.9]} 30... Qd3+ {[%clk 0:00:08.2]} 31. Kh2 {[%clk 0:00:14.2]} 31... Qe2+
{[%clk 0:00:07.9]} 32. Kh3 {[%clk 0:00:14.6]} 32... Qd3+ {[%clk 0:00:07.7]} 33.
Kh2 {[%clk 0:00:14.9]} 33... Qe2+ {[%clk 0:00:07.9]} 34. Kh3 {[%clk 0:00:15.1]}
1/2-1/2

[Event "Early-Titled-Tuesday-Blitz-June-18-2024"]
[Site "Chess.com"]
[Date "2024.06.18"]
[Round "7"]
[White "UK_23"]
[Black "simplerXiao"]
[Result "1-0"]
[WhiteElo "2413"]
[BlackElo "2516"]
[TimeControl "180+1"]
[EndTime "9:19:52 PDT"]
[Termination "UK_23 won on time"]

1. e4 {[%clk 0:03:00.9]} 1... g6 {[%clk 0:02:53.1]} 2. d4 {[%clk 0:03:00.3]}
2... Bg7 {[%clk 0:02:54]} 3. c3 {[%clk 0:03:00.5]} 3... c6 {[%clk 0:02:52.8]} 4.
Nf3 {[%clk 0:03:01.1]} 4... d5 {[%clk 0:02:53.4]} 5. Nbd2 {[%clk 0:03:00.9]}
5... dxe4 {[%clk 0:02:52.7]} 6. Nxe4 {[%clk 0:03:01.8]} 6... Nd7 {[%clk
0:02:52.7]} 7. h3 {[%clk 0:03:01.5]} 7... Ngf6 {[%clk 0:02:53.2]} 8. Nxf6+
{[%clk 0:03:00.5]} 8... Nxf6 {[%clk 0:02:52.9]} 9. Bf4 {[%clk 0:03:00.6]} 9...
O-O {[%clk 0:02:52.6]} 10. Bd3 {[%clk 0:03:00.1]} 10... a5 {[%clk 0:02:45.2]}
11. a4 {[%clk 0:02:59.4]} 11... Nd5 {[%clk 0:02:40.9]} 12. Bh2 {[%clk
0:02:57.8]} 12... b5 {[%clk 0:02:36.6]} 13. O-O {[%clk 0:02:56.1]} 13... b4
{[%clk 0:02:35.7]} 14. c4 {[%clk 0:02:49.9]} 14... Nb6 {[%clk 0:02:29.7]} 15. b3
{[%clk 0:02:48]} 15... Nd7 {[%clk 0:02:15.7]} 16. Be4 {[%clk 0:02:41.6]} 16...
Bb7 {[%clk 0:02:10.5]} 17. Qe2 {[%clk 0:02:39.3]} 17... Nf6 {[%clk 0:02:08.3]}
18. Bc2 {[%clk 0:02:36.8]} 18... Nh5 {[%clk 0:02:04.5]} 19. Rad1 {[%clk
0:02:35.7]} 19... Rc8 {[%clk 0:01:57.7]} 20. Rfe1 {[%clk 0:02:35.8]} 20... e6
{[%clk 0:01:51.5]} 21. Ne5 {[%clk 0:02:30.1]} 21... Qe7 {[%clk 0:01:45.1]} 22.
c5 {[%clk 0:02:08.9]} 22... Rfd8 {[%clk 0:01:42.4]} 23. Be4 {[%clk 0:02:08.4]}
23... Qh4 {[%clk 0:01:27.8]} 24. Nf3 {[%clk 0:02:04.3]} 24... Qe7 {[%clk
0:01:24.6]} 25. Ne5 {[%clk 0:01:54.1]} 25... Qh4 {[%clk 0:01:10.1]} 26. Qe3
{[%clk 0:01:46.7]} 26... Nf6 {[%clk 0:01:06.6]} 27. Bf3 {[%clk 0:01:46.5]} 27...
Bh6 {[%clk 0:01:04.6]} 28. Qe2 {[%clk 0:01:38.3]} 28... Rf8 {[%clk 0:00:40.8]}
29. Bg3 {[%clk 0:01:32.4]} 29... Qg5 {[%clk 0:00:39.2]} 30. h4 {[%clk
0:01:26.8]} 30... Qf5 {[%clk 0:00:39.4]} 31. Qb2 {[%clk 0:01:12.4]} 31... Rfd8
{[%clk 0:00:30]} 32. Nc4 {[%clk 0:01:11.5]} 32... Bf4 {[%clk 0:00:24.6]} 33. Nd6
{[%clk 0:01:08.4]} 33... Bxd6 {[%clk 0:00:23.9]} 34. Bxd6 {[%clk 0:01:09.3]}
34... Nd5 {[%clk 0:00:20.9]} 35. Qd2 {[%clk 0:01:06.7]} 35... Ba6 {[%clk
0:00:19.4]} 36. h5 {[%clk 0:01:05.9]} 36... Rxd6 {[%clk 0:00:12.3]} 37. cxd6
{[%clk 0:01:05.6]} 37... Nc3 {[%clk 0:00:12.1]} 38. Re5 {[%clk 0:01:01.5]} 38...
Qf6 {[%clk 0:00:11.3]} 39. Rde1 {[%clk 0:01:01.1]} 39... Rd8 {[%clk 0:00:10.5]}
40. hxg6 {[%clk 0:00:57.8]} 40... hxg6 {[%clk 0:00:10.3]} 41. Bxc6 {[%clk
0:00:52.5]} 41... Rxd6 {[%clk 0:00:10.3]} 42. Bf3 {[%clk 0:00:53.1]} 42... Kg7
{[%clk 0:00:04.1]} 43. Qe3 {[%clk 0:00:50.8]} 43... Bc8 {[%clk 0:00:03.7]} 44.
Rxa5 {[%clk 0:00:49.9]} 44... Rxd4 {[%clk 0:00:03.7]} 45. Qe5 {[%clk 0:00:46.2]}
45... Qxe5 {[%clk 0:00:02.2]} 46. Raxe5 {[%clk 0:00:47.1]} 46... Rd3 {[%clk
0:00:01.8]} 47. Rc5 {[%clk 0:00:45.5]} 1-0

[Event "Early-Titled-Tuesday-Blitz-June-18-2024"]
[Site "Chess.com"]
[Date "2024.06.18"]
[Round "7"]
[White "nitpicker"]
[Black "ploxoi"]
[Result "0-1"]
[WhiteElo "2327"]
[BlackElo "2485"]
[TimeControl "180+1"]
[EndTime "9:19:52 PDT"]
[Termination "ploxoi won on time"]

1. d4 {[%clk 0:03:00.9]} 1... e6 {[%clk 0:02:57.5]} 2. c4 {[%clk 0:03:00.2]}
2... d5 {[%clk 0:02:55.6]} 3. Nf3 {[%clk 0:02:59.2]} 3... c6 {[%clk 0:02:55.2]}
4. Qc2 {[%clk 0:02:58.2]} 4... Nf6 {[%clk 0:02:54.3]} 5. g3 {[%clk 0:02:57.3]}
5... Nbd7 {[%clk 0:02:53.2]} 6. Bg2 {[%clk 0:02:57.2]} 6... Be7 {[%clk
0:02:52.3]} 7. O-O {[%clk 0:02:56.9]} 7... O-O {[%clk 0:02:53]} 8. Rd1 {[%clk
0:02:55]} 8... b6 {[%clk 0:02:53.2]} 9. Nc3 {[%clk 0:02:43.4]} 9... Bb7 {[%clk
0:02:53.2]} 10. b3 {[%clk 0:02:35]} 10... Qc7 {[%clk 0:02:45.8]} 11. e4 {[%clk
0:02:27.6]} 11... dxe4 {[%clk 0:02:45.3]} 12. Ng5 {[%clk 0:02:27]} 12... e5
{[%clk 0:02:31.7]} 13. Bxe4 {[%clk 0:02:11.4]} 13... Nxe4 {[%clk 0:02:13.2]} 14.
Ncxe4 {[%clk 0:02:08.1]} 14... g6 {[%clk 0:02:04.3]} 15. dxe5 {[%clk 0:01:45.5]}
15... Nxe5 {[%clk 0:02:00.4]} 16. Bb2 {[%clk 0:01:43.8]} 16... c5 {[%clk
0:01:34.8]} 17. Qc3 {[%clk 0:01:38.4]} 17... f6 {[%clk 0:01:25.5]} 18. f3 {[%clk
0:01:11]} 18... Nxf3+ {[%clk 0:01:13.2]} 19. Qxf3 {[%clk 0:01:07.7]} 19... fxg5
{[%clk 0:01:10.7]} 20. Qc3 {[%clk 0:01:07.1]} 20... Kf7 {[%clk 0:00:53.5]} 21.
Qg7+ {[%clk 0:00:44]} 21... Ke8 {[%clk 0:00:53.1]} 22. Nxg5 {[%clk 0:00:34.6]}
22... Qc6 {[%clk 0:00:47.9]} 23. Rd5 {[%clk 0:00:34.3]} 23... Rd8 {[%clk
0:00:30.2]} 24. Re1 {[%clk 0:00:30.9]} 24... Rd7 {[%clk 0:00:28.8]} 25. Ne6
{[%clk 0:00:17.7]} 25... Bf6 {[%clk 0:00:12.2]} 26. Nxf8+ {[%clk 0:00:15.3]}
26... Re7 {[%clk 0:00:11.7]} 27. Rxe7+ {[%clk 0:00:12.1]} 27... Bxe7 {[%clk
0:00:11.9]} 28. Nd7 {[%clk 0:00:08.9]} 28... Qe6 {[%clk 0:00:10.4]} 29. Qxh7
{[%clk 0:00:03.1]} 29... Bxd5 {[%clk 0:00:09]} 0-1

[Event "Early-Titled-Tuesday-Blitz-June-18-2024"]
[Site "Chess.com"]
[Date "2024.06.18"]
[Round "7"]
[White "rasmussvane"]
[Black "luckyswitchback"]
[Result "0-1"]
[WhiteElo "2964"]
[BlackElo "2854"]
[TimeControl "180+1"]
[EndTime "9:19:58 PDT"]
[Termination "luckyswitchback won by checkmate"]

1. Nf3 {[%clk 0:03:00.9]} 1... d5 {[%clk 0:02:59.6]} 2. g3 {[%clk 0:03:01.2]}
2... Nf6 {[%clk 0:02:58.1]} 3. Bg2 {[%clk 0:03:01.6]} 3... e6 {[%clk 0:02:57.4]}
4. O-O {[%clk 0:03:02]} 4... Bd6 {[%clk 0:02:57.4]} 5. d4 {[%clk 0:02:59.4]}
5... O-O {[%clk 0:02:56.7]} 6. c4 {[%clk 0:03:00]} 6... h6 {[%clk 0:02:57]} 7.
b3 {[%clk 0:02:57.9]} 7... b6 {[%clk 0:02:56.8]} 8. Bb2 {[%clk 0:02:57.2]} 8...
Bb7 {[%clk 0:02:57]} 9. cxd5 {[%clk 0:02:50]} 9... exd5 {[%clk 0:02:56.7]} 10.
Nc3 {[%clk 0:02:48.2]} 10... a5 {[%clk 0:02:49.3]} 11. Rc1 {[%clk 0:02:38.2]}
11... Re8 {[%clk 0:02:46.2]} 12. Re1 {[%clk 0:02:10.5]} 12... Nbd7 {[%clk
0:02:26.3]} 13. Nb5 {[%clk 0:02:04.5]} 13... Ba6 {[%clk 0:02:26]} 14. Nxd6
{[%clk 0:02:03.7]} 14... cxd6 {[%clk 0:02:26.9]} 15. Nd2 {[%clk 0:01:55.8]}
15... b5 {[%clk 0:02:18.6]} 16. e4 {[%clk 0:01:36.5]} 16... dxe4 {[%clk
0:02:10.5]} 17. Nxe4 {[%clk 0:01:37.4]} 17... Nxe4 {[%clk 0:02:02.9]} 18. Bxe4
{[%clk 0:01:38.3]} 18... Rc8 {[%clk 0:02:01.1]} 19. Rxc8 {[%clk 0:01:32.5]}
19... Qxc8 {[%clk 0:02:00.6]} 20. d5 {[%clk 0:01:28.4]} 20... b4 {[%clk
0:01:52.8]} 21. Bf5 {[%clk 0:01:05]} 21... Qd8 {[%clk 0:01:26.2]} 22. Rxe8+
{[%clk 0:00:55.1]} 22... Qxe8 {[%clk 0:01:26.3]} 23. Kg2 {[%clk 0:00:48]} 23...
Ne5 {[%clk 0:01:17.8]} 24. Qd4 {[%clk 0:00:39.9]} 24... Qb5 {[%clk 0:01:12.9]}
25. Qd1 {[%clk 0:00:40]} 25... Bb7 {[%clk 0:01:08.9]} 26. Be4 {[%clk 0:00:32.4]}
26... f5 {[%clk 0:01:07.4]} 27. Bxf5 {[%clk 0:00:28.8]} 27... Bxd5+ {[%clk
0:01:06]} 28. Kh3 {[%clk 0:00:28]} 28... g6 {[%clk 0:00:45.9]} 29. Bxe5 {[%clk
0:00:23.9]} 29... dxe5 {[%clk 0:00:32.8]} 30. Bxg6 {[%clk 0:00:19.2]} 30... Qd7+
{[%clk 0:00:29.3]} 31. Qg4 {[%clk 0:00:11.8]} 31... Bg2+ {[%clk 0:00:28.3]} 32.
Kh4 {[%clk 0:00:11.7]} 32... Qe7+ {[%clk 0:00:28.7]} 33. Kh5 {[%clk 0:00:10.9]}
33... Bf3 {[%clk 0:00:29.3]} 34. Bf7+ {[%clk 0:00:09]} 34... Kh8 {[%clk
0:00:23.5]} 35. Qxf3 {[%clk 0:00:01]} 35... Qg5# {[%clk 0:00:22.4]} 0-1

[Event "Early-Titled-Tuesday-Blitz-June-18-2024"]
[Site "Chess.com"]
[Date "2024.06.18"]
[Round "7"]
[White "amylazy"]
[Black "AndrewMaco"]
[Result "0-1"]
[WhiteElo "2485"]
[BlackElo "2702"]
[TimeControl "180+1"]
[EndTime "9:19:58 PDT"]
[Termination "AndrewMaco won by resignation"]

1. d4 {[%clk 0:02:59.8]} 1... Nf6 {[%clk 0:02:58]} 2. Nf3 {[%clk 0:03:00.2]}
2... g6 {[%clk 0:02:50]} 3. g3 {[%clk 0:02:59.7]} 3... b5 {[%clk 0:02:47.6]} 4.
Bg2 {[%clk 0:02:59.7]} 4... Bb7 {[%clk 0:02:47.8]} 5. O-O {[%clk 0:03:00.3]}
5... Bg7 {[%clk 0:02:47.5]} 6. Re1 {[%clk 0:02:59.4]} 6... O-O {[%clk
0:02:46.9]} 7. Nbd2 {[%clk 0:02:57.9]} 7... d6 {[%clk 0:02:39.3]} 8. e4 {[%clk
0:02:57.4]} 8... Nfd7 {[%clk 0:02:34.5]} 9. c3 {[%clk 0:02:57.1]} 9... e5 {[%clk
0:02:34.3]} 10. Nb3 {[%clk 0:02:41.6]} 10... c5 {[%clk 0:02:12.8]} 11. dxc5
{[%clk 0:02:35.5]} 11... dxc5 {[%clk 0:02:12]} 12. Bg5 {[%clk 0:02:11]} 12...
Qb6 {[%clk 0:01:51.1]} 13. Bh3 {[%clk 0:01:55.1]} 13... c4 {[%clk 0:01:27.5]}
14. Nbd2 {[%clk 0:01:44.6]} 14... Nc5 {[%clk 0:01:21]} 15. Be3 {[%clk
0:01:29.6]} 15... Qc7 {[%clk 0:01:20.9]} 16. Bxc5 {[%clk 0:01:26.3]} 16... Qxc5
{[%clk 0:01:21.8]} 17. a4 {[%clk 0:01:26.1]} 17... a6 {[%clk 0:01:21.5]} 18.
axb5 {[%clk 0:01:24.8]} 18... axb5 {[%clk 0:01:22.4]} 19. Rxa8 {[%clk
0:01:24.7]} 19... Bxa8 {[%clk 0:01:23.3]} 20. Nf1 {[%clk 0:01:20.8]} 20... Bf6
{[%clk 0:01:00]} 21. Qe2 {[%clk 0:01:16.9]} 21... Rd8 {[%clk 0:00:55.1]} 22. Ne3
{[%clk 0:01:13.9]} 22... h5 {[%clk 0:00:33.3]} 23. Qc2 {[%clk 0:00:34.6]} 23...
Rd3 {[%clk 0:00:23.3]} 24. Bf1 {[%clk 0:00:33.1]} 24... Rd8 {[%clk 0:00:14.4]}
25. Rd1 {[%clk 0:00:25.5]} 25... Rxd1 {[%clk 0:00:13]} 26. Nxd1 {[%clk
0:00:25.4]} 26... Nd7 {[%clk 0:00:12.9]} 27. Ne3 {[%clk 0:00:25]} 27... Kg7
{[%clk 0:00:12.3]} 28. h4 {[%clk 0:00:24.5]} 28... Nb6 {[%clk 0:00:12.5]} 29.
Bg2 {[%clk 0:00:22.7]} 29... Qd6 {[%clk 0:00:10.9]} 30. Nd2 {[%clk 0:00:14.4]}
30... Nd7 {[%clk 0:00:11]} 31. Ndf1 {[%clk 0:00:14.1]} 31... Nc5 {[%clk
0:00:11.3]} 32. Qb1 {[%clk 0:00:13.1]} 32... Qd3 {[%clk 0:00:10.9]} 33. Nd5
{[%clk 0:00:11.8]} 33... Qxb1 {[%clk 0:00:10.4]} 0-1